Cogmind - Beta 9.4 @@@ ROGUE MODE // 2020.03.21 @ 14:03:13 Player: lankcore29 Result: Destroyed by L-31 Rogue with Katana Performance ------------- Evolutions (1) 500 Regions Visited (2) 400 Robots Destroyed (32) 160 Value Destroyed (1037) 1037 Prototype IDs (1) 20 Alien Tech Used (0) 0 Bonus (0) 0 TOTAL SCORE: 2117 Bonus ------- None Cogmind --------- Core Integrity 0/400 Matter 285/300 Energy 100/100 System Corruption 0% Temperature Cool (0) Movement Core (150) Ox2 Location -9/Materials Parts ------- > --- POWER (1) -------- (None) > --- PROPULSION (3) --- (None) > --- UTILITY (3) ------ Small Storage Unit Seismic Analyzer > --- WEAPON (2) ------- Heavy Hammer > --- INVENTORY (6) ---- Aluminum Leg Improved Aluminum Leg Grenade Launcher Peak State ------------ > --- POWER ------------ Light Ion Engine > --- PROPULSION ------- Improved Aluminum Leg Improved Aluminum Leg Improved Aluminum Leg > --- UTILITY ---------- Small Storage Unit Seismic Analyzer Light Armor Plating > --- WEAPON ----------- Particle Gun Heavy Hammer > --- INVENTORY -------- Ion Engine Aluminum Leg Aluminum Leg Aluminum Leg Improved Aluminum Leg Grenade Launcher [Rating: 14] Favorites ----------- Power Light Ion Engine Engine Light Ion Engine Propulsion Improved Aluminum Leg Leg Improved Aluminum Leg Utility Small Storage Unit Storage Small Storage Unit Processor Seismic Analyzer Protection Light Armor Plating Weapon Assault Rifle Energy Gun Particle Gun Energy Cannon Advanced Beam Cannon Ballistic Gun Assault Rifle Launcher Grenade Launcher Impact Weapon Heavy Hammer Build | -11 -10 -9 ------- Run | Scr Mat Mat Slots Evolved 2 | . . 2 Power . | . . . Propulsion 1 | . . 1 Utility 1 | . . 1 Weapon . | . . . Parts Attached 31 | 6 7 18 Power 3 | 1 1 1 Engine 3 | 1 1 1 Core . | . . . Reactor . | . . . Propulsion 11 | 2 2 7 Treads . | . . . Leg 11 | 2 2 7 Wheel . | . . . Hover . | . . . Flight . | . . . Utility 3 | 1 1 1 Device . | . . . Storage 1 | 1 . . Processor 1 | . 1 . Hackware . | . . . Protection 1 | . . 1 Artifact . | . . . Weapon 14 | 2 3 9 Energy Gun 4 | . 1 3 Energy Cannon 1 | . . 1 Ballistic Gun 6 | 2 2 2 Ballistic Cannon . | . . . Launcher 1 | . . 1 Special Weapon . | . . . Impact Weapon 2 | . . 2 Slashing Weapon . | . . . Piercing Weapon . | . . . Special Melee Weapon . | . . . Unidentified Prototypes 1 | . . 1 Parts Lost 13 | . 4 9 Power 2 | . . 2 Propulsion 4 | . 1 3 Utility 1 | . . 1 Weapon 6 | . 3 3 Highest Loss Streak 6 | . 1 6 Average Slot Usage (%) 92 | . 92 93 Engine 11 | . 14 9 Leg 29 | . 26 31 Storage 12 | . 14 11 Processor 12 | . 13 11 Protection 4 | . . 9 Energy Gun 8 | . 6 10 Ballistic Gun 8 | . 16 . Impact Weapon 4 | . . 8 Naked Turns . | . . . Heaviest Build 18 | 13 13 18 Greatest Support 39 | 20 20 39 Greatest Overweight (x) 1 | 1 1 . Average Overweight (x) . | . . . Largest Inventory Capacity 6 | 6 6 6 Average Capacity 5 | 5 6 6 Most Carried 6 | 6 6 6 Average Carried 5 | 4 5 5 Final Capacity 6 | 6 6 6 Final Carried 6 | 6 6 3 Class Distribution -------------------- 100% | Mutant Dominant Class ---------------- Mutant | -10/Materials Mutant | -9/Materials Resources | -11 -10 -9 ----------- Run | Scr Mat Mat Matter Collected 638 | 214 284 140 Remotely . | . . . Salvage Created 1179 | . 540 639 Parts 62 | . 30 32 Haulers Intercepted 1 | . . 1 Recyclers Shooed 2 | . 1 1 Parts Field Recycled . | . . . Retrieved Matter . | . . . Parts Self-Destructed . | . . . Prevented . | . . . Kills | -11 -10 -9 ------- Run | Scr Mat Mat Combat Hostiles Destroyed 29 | . 13 16 Melee 2 | . . 2 Guns 24 | . 12 12 Cannons 1 | . . 1 AOE 1 | . 1 . Classes Destroyed 6 | . 3 3 Worker 1 | . 1 . Builder 1 | . 1 . Hauler 1 | . . 1 Swarmer 3 | . . 3 Grunt 23 | . 13 10 Sentry 3 | . . 3 Best Kill Streak 5 | . 4 5 Combat Bots Only 5 | . 4 5 Max Kills in Single Turn 3 | . 3 1 Gunslinging . | . . . Exploded 1 | . 1 . Melee 1 | . . 1 Uniques/NPCs Destroyed . | . . . Combat | -11 -10 -9 -------- Run | Scr Mat Mat Damage Taken 2169 | . 924 1245 Core 608 | . 186 422 Absorbed by Shields . | . . . Core Remaining (%) 62 | 100 25 . Volleys Fired 143 | . 59 84 Largest 2 | . 2 2 Hottest 85 | . 85 79 Shots Fired 182 | . 97 85 Gun 182 | . 97 85 Cannon . | . . . Launcher . | . . . Special . | . . . Kinetic 81 | . 76 5 Thermal 101 | . 21 80 Explosive . | . . . Electromagnetic . | . . . Robot Hit Streak 19 | . 12 19 Robot Miss Streak 3 | . 3 2 Penetration Max . | . . . Secondary Targets 1 | . 1 . Max Gunslinging Chain 1 | . 1 . Shots Hit Robots 141 | . 66 75 Core Hits 58 | . 30 28 Critical Hits 1 | . 1 . Critical Kills . | . . . Critical Parts Destroyed 1 | . 1 . Melee Attacks 12 | . . 12 Impact 12 | . . 12 Slashing . | . . . Piercing . | . . . Sneak Attacks . | . . . Combat Hostiles . | . . . Follow-up Attacks . | . . . Damage Inflicted 2425 | . 1201 1224 Guns 1762 | . 803 959 Cannons . | . . . Explosions 398 | . 398 . Melee 239 | . . 239 Ramming 26 | . . 26 Kinetic 654 | . 601 53 Thermal 1108 | . 202 906 Explosive 398 | . 398 . Electromagnetic . | . . . Impact 239 | . . 239 Slashing . | . . . Piercing . | . . . Highest Corruption 3 | . 3 . Average Corruption 2 | . 2 . Corruption Purged . | . . . Effects 6 | . 6 . Message Errors 3 | . 3 . Heat Flow Errors 2 | . 2 . Energy Discharges 1 | . 1 . Overload Shots . | . . . Overflow Damage 41 | . 18 23 Projectiles . | . . . Explosions 18 | . 18 . Melee 23 | . . 23 Knockbacks 5 | . . 5 Impact 4 | . . 4 Kinetic . | . . . Secondary 1 | . . 1 Self-Inflicted Damage 54 | . 54 . Shots 1 | . 1 . Rammed . | . . . Targets Rammed 3 | . . 3 Kicked 3 | . . 3 Crushed . | . . . Highest Temperature 306 | . 282 306 Average Temperature 78 | . 65 86 Received Heat Transfer 834 | . 480 354 Effects 1 | . 1 . Energy Bleed 1 | . 1 . Siege Activations . | . . . Robots Corrupted . | . . . Combat Hostiles . | . . . Parts Fried 2 | . . 2 Impact Corruptions 2 | . . 2 Robots Melted . | . . . Combat Hostiles . | . . . Parts Melted 6 | . . 6 Heat Transferred 2775 | . 481 2294 Parts Sabotaged . | . . . Parts Stolen . | . . . Parts Stripped . | . . . Power Chain Reactions . | . . . Missiles Intercepted . | . . . Alert | -11 -10 -9 ------- Run | Scr Mat Mat Peak Influence 257 | . 245 257 Average Influence 131 | . 112 163 Maximum Alert Level 1 | . 1 1 Low Security (%) 73 | 100 80 62 Level 1 26 | . 19 37 Level 2 . | . . . Level 3 . | . . . Level 4 . | . . . Level 5 . | . . . High Security . | . . . Max Security . | . . . Squads Dispatched 5 | . 4 1 Investigation . | . . . Extermination . | . . . Reinforcement 5 | . 4 1 Assault . | . . . Garrison . | . . . Intercept . | . . . Construction Impeded . | . . . Haulers Reinforced . | . . . Stealth | -11 -10 -9 --------- Run | Scr Mat Mat Distress Signals 2 | . 1 1 Communications Jammed . | . . . Distress Signals . | . . . Times Spotted 46 | . 23 23 Peak Tracking Total 6 | . 5 6 Tactical Retreats 3 | . 3 . Traps | -11 -10 -9 ------- Run | Scr Mat Mat Traps Triggered 3 | . 2 1 Indirectly . | . . . Trap Hack Attempts . | . . . Triggered . | . . . Disarmed . | . . . Reprogrammed . | . . . Reused . | . . . Traps Extracted . | . . . Installed . | . . . Triggered . | . . . Machines | -11 -10 -9 ---------- Run | Scr Mat Mat Machines Disabled 3 | . 3 . Max in Single Turn 2 | . 2 . Machines Sabotaged . | . . . Garrisons Compromised . | . . . Overloaded Fab Kills . | . . . Fab Network Shutdowns . | . . . Hacking | -11 -10 -9 --------- Run | Scr Mat Mat Machines Accessed 4 | . 1 3 Terminals 3 | . 1 2 Fabricators . | . . . Repair Stations . | . . . Recycling Units . | . . . Scanalyzers 1 | . . 1 Garrison Access . | . . . Total Hacks 14 | . 2 12 Successful 10 | . 1 9 Failed 4 | . 1 3 Catastrophic . | . . . Database Lockouts . | . . . Manual . | . . . Terminals 6 | . 2 4 Fabricators . | . . . Repair Stations . | . . . Recycling Units . | . . . Scanalyzers 8 | . . 8 Garrison Access . | . . . Terminal Hacks 2 | . 1 1 Maintenance Status 1 | . 1 . Transport Status 1 | . . 1 Fabricator Hacks . | . . . Repair Station Hacks . | . . . Recycling Unit Hacks . | . . . Scanalyzer 8 | . . 8 Insert Component 3 | . . 3 Analyze 5 | . . 5 Garrison Access Hacks . | . . . Unauthorized Hacks . | . . . Terminals . | . . . Fabricators . | . . . Repair Stations . | . . . Recycling Units . | . . . Scanalyzers . | . . . Garrison Access . | . . . Data Cores Recovered . | . . . Used . | . . . Hacking Detections 3 | . 1 2 Full Trace Events . | . . . Feedback Events . | . . . Feedback Blocked . | . . . Robot Schematics Acquired . | . . . Robots Built . | . . . Matter . | . . . Time . | . . . Total Robot Build Rating . | . . . Part Schematics Acquired 3 | . . 3 Parts Built . | . . . Matter . | . . . Time . | . . . Total Part Build Rating . | . . . Parts Repaired . | . . . Time . | . . . Parts Recycled . | . . . Recycled Matter . | . . . Retrieved Matter . | . . . Retrieved Components . | . . . Parts Scanalyzed 3 | . . 3 Part Schematics Acquired 3 | . . 3 Parts Damaged . | . . . Bothacking | -11 -10 -9 ------------ Run | Scr Mat Mat Used RIF Installer . | . . . Robots Hacked . | . . . Non-combat . | . . . Combat . | . . . Robot Hacks Applied . | . . . Relay Couplers Released . | . . . Robots Rewired . | . . . Allies Hacked . | . . . Hacks Repelled . | . . . Allies | -11 -10 -9 -------- Run | Scr Mat Mat Total Allies . | . . . Largest Group . | . . . Highest-Rated Group . | . . . Highest-Rated Ally . | . . . Total Orders . | . . . Ally Attacks . | . . . Total Damage . | . . . Kills . | . . . Allies Corrupted . | . . . Allies Melted . | . . . Intel | -11 -10 -9 ------- Run | Scr Mat Mat Robot Analysis Total . | . . . Derelict Logs Recovered . | . . . Drone Launches . | . . . Drone Recoveries . | . . . Exploration | -11 -10 -9 ------------- Run | Scr Mat Mat Turns Passed 1558 | 78 732 748 Spaces Moved 888 | 57 432 399 Core 11 | 11 . . Treads . | . . . Legs 877 | 46 432 399 Wheels . | . . . Hover . | . . . Flight . | . . . Fastest Speed 50 | 50 120 120 Average Speed 119 | 107 120 120 Slowest Speed 150 | 150 150 120 Overloaded Moves . | . . . Propulsion Burnouts . | . . . Robots Hopped . | . . . Cave-ins Triggered . | . . . Exploration Rate (%) 31 | 5 61 27 Regions Visited 2 Branch Regions . Pre-discovered Areas . | . . . Known Exits Taken . | . . . Unknown Exits Taken 2 | 1 1 . Scrap Searched . | . . . Spaces Dug . | . . . Terrain Destroyed 45 | . 45 . Melee . | . . . Projectile . | . . . AOE 45 | . 45 . Actions | -11 -10 -9 --------- Run | Scr Mat Mat Total 1188 | 73 553 562 Wait 67 | . 38 29 Move 886 | 56 431 399 Hop . | . . . Pick Up 29 | 11 10 8 Fast Attach 7 | 1 1 5 Attach 15 | 5 3 7 Detach . | . . . Swap 9 | . 3 6 Drop 17 | . 8 9 Fire 143 | . 59 84 Melee 12 | . . 12 Ram . | . . . Kick 3 | . . 3 Crush . | . . . Escape Stasis . | . . . Rewire . | . . . Trap . | . . . Miscellaneous . | . . . Route ------- -11/Scrapyard -10/Materials (discovered 2 exits: *Mat x2) -9/Materials History --------- Turn | Location | Event 9 | -11/Scrapyard | Discovered new exit (range 15) 79 | -11/Scrapyard | Entered Materials 309 | -10/Materials | Build established: Mutant 340 | -10/Materials | Discovered new exit (range 11) 436 | -10/Materials | Core integrity fell below 50% 634 | -10/Materials | Discovered new exit (range 4) 811 | -10/Materials | Entered another Materials area 811 | -9/Materials | Evolved 2 slots: Propulsion x1, Utility x1 1451 | -9/Materials | Core integrity fell below 50% 1545 | -9/Materials | Core integrity fell below 20% 1559 | -9/Materials | Destroyed by L-31 Rogue with Katana Last Messages --------------- 01535_ K-01 Serf collects debris. 01536_ K-01 Serf cleans the Atomic Centrifuge. 01541_ G-34 Mercenary knocked back. 01541_ R-06 Scavenger collects Sml. Laser. 01544_ G-34 Mercenary destroyed. 01544_ R-06 Scavenger collects Heat Sink. 01545_ K-01 Serf cleans the Atomic Centrifuge. 01547_ Destroyed Particle Gun. 01547_ G-47 Trooper system corrupted by crushing effect. 01547_ R-06 Scavenger collects Ion Engine. 01548_ G-47 Trooper system terminally corrupted. 01548_ Aluminum Leg fried. 01548_ Lgt. Nuclear Core fried. 01549_ Imp. Aluminum Leg destroyed. 01549_ Ion Engine destroyed. 01550_ L-31 Rogue knocked back. 01553_ K-01 Serf collects debris. 01553_ L-31 Rogue knocked back. 01556_ Destroyed Melee Analysis Suite. 01556_ L-31 Rogue system corrupted by crushing effect. Map ----- +----------------------------------------------------+ | | | ?????????????????????????????????????????????????? | | ?????????????????????????????????????????????????? | | ?????????????????????????????????????????????????? | | ?????????????????????????????????????????????????? | | ?????????????????????????????????????????????????? | | ?????????????????????????????????????????????????? | | ?????????????????????????????????????????????????? | | ?????????????????????????????????????????????????? | | ?????????????????????????????????????????????????? | | ?????????????????????????????????????????????????? | | ?????????????????????????????????????????????????? | | ?????????????????????????????????????????????????? | | ?????????????????????????????????????????????????? | | ?????????????????????????????????????????????????? | | ?????????????????????????????????????????????????? | | ?????????????????????????????????????????????????? | | ?????????????????????###########?????????????????? | | ?????????????????????# #?????????????????? | | ?????????????????????# #?????????????????? | | ?????????????????????# ##????????????????? | | ?????????????????????# """ """ #??? ???? ?????? | | ?????????????????????# """ """ #??? ? ?????? | | ?????????????????????# """ """ #?? ??????? | | ?????????????????????# * #? #????????? | | ?????????????????????# @%= ## #????????? | | ?????????????????????#####l##### #????????? | | ?????????????????######## %k% #????????? | | ?????????? = #????????? | | ????????????????######### ]k #????????? | | ????????????????????????## !a #????????? | | ?????????????????????????#%! """ """ #????????? | | ?????????????????????????#= """ """ #????????? | | ?????????????????????????# """ """ #????????? | | ?????????????????????????# #????????? | | ?????????????????????????# #????????? | | ?????????????????????????/ """ """ #????????? | | ?????????????????????????# % """ """ #????????? | | ?????????????????????????## """ """ #????????? | | ??????????????????????????# #????????? | | ??????????????????????????# #????????? | | ???????????????????######## #????????? | | ???????????? "%" % #????????? | | ???????????????????#####+## ######+######????????? | | ??????????????????????????# #????????????????????? | | ??????????????????????????# #????????????????????? | | ??????????????????????????# #????????????????????? | | ??????????????????????????# #????????????????????? | | ??????????????????????????# #????????????????????? | | ??????????????????????????# #??##########????????? | +----------------------------------------------------+ Best States ------------- Heat Dissipation 28 Energy Generation 10 Energy Capacity 250 Matter Stores 300 Matter Capacity 300 Sight Range 16 Terrain Scan Density 60 Armor Coverage 150 Evasion (%) 40 Item Schematics ----------------- Grenade Launcher | -9/Materials | Scanalyzed Imp. Aluminum Leg | -9/Materials | Scanalyzed Particle Gun | -9/Materials | Scanalyzed Robot Schematics ------------------ None Fabricated ------------ Nothing Alien Tech Used ----------------- None Achievements -------------- None Challenges ------------ None Game ------ Seed SurgeWarpCoupler Manual? 0 Play Time 00:38:21 Cumulative 6.8 hours Start 2020.03.20 @ 22:37:38 End 2020.03.21 @ 14:03:13 Sessions 3 Manual Loads 0 Difficulty Rogue Special Mode None Game No. 7 Rogue 5 Adventurer 2 Explorer 0 Win Type - Total 0 Types 0/0/0/0/0/0/0 Lore% 3 Gallery% 10 Achievement% 10 Wizard Run 0 Options --------- ASCII 1 Keyboard 0 Movement Vi Keybinds 0 Fullscreen 1 Font 18/SmallcapsGlow Map View 76x50 Tactical HUD 1 Map Filters NONE Filters NONE Steam 1 RUN: d883009c-0823-4ab6-9fc8-deb644376246